bitfinex/quotes_BTCUSD_20250813
["timestamp","ask_amount","ask_price","bid_price","bid_amount"]
[1755099439985,0.01240748,120700.0,120690.0,1.54486716]
[1755099440195,0.00373328,120710.0,120700.0,0.16570008]
[1755099440413,0.00422468,120710.0,120700.0,1.23962922]
[1755099440633,0.00638468,120710.0,120700.0,1.36950922]
[1755099440849,0.00638468,120710.0,120700.0,0.78981461]
[1755099441081,0.00638468,120710.0,120700.0,1.36950922]
[1755099441347,0.00638468,120710.0,120700.0,1.23962922]
[1755099441561,0.00638468,120710.0,120700.0,1.09153461]
[1755099441779,0.00638468,120710.0,120700.0,1.22145461]
[1755099442202,0.00930468,120710.0,120700.0,1.22145461]
[1755099442412,0.00622468,120710.0,120700.0,1.44329922]
[1755099442638,0.00821468,120710.0,120700.0,1.7605833]
[1755099442853,0.00821468,120710.0,120700.0,1.6286733]
[1755099442854,0.01021468,120710.0,120700.0,1.6286733]
[1755099443072,0.01021468,120710.0,120700.0,1.7586333]
[1755099443285,0.00821468,120710.0,120700.0,1.5652633]
[1755099443499,0.00622468,120710.0,120700.0,1.5652633]
[1755099443711,0.00422468,120710.0,120700.0,1.5652633]
[1755099443983,0.00422468,120710.0,120700.0,1.56390388]
[1755099444210,0.00622468,120710.0,120700.0,0.94323919]
[1755099444434,0.00730468,120710.0,120700.0,0.04947819]
[1755099444651,0.17249793,120710.0,120690.0,0.56230513]
[1755099444872,0.16941793,120710.0,120700.0,0.13012]
[1755099445090,0.08694793,120710.0,120700.0,0.57989461]
[1755099445323,0.08694793,120710.0,120700.0,0.44981461]
[1755099445551,0.09204793,120710.0,120700.0,0.44981461]
[1755099445769,0.09204793,120710.0,120700.0,0.58881667]
[1755099446206,0.09004793,120710.0,120700.0,0.58881667]
[1755099446423,0.09404793,120710.0,120700.0,0.58881667]
[1755099446641,0.00822468,120710.0,120700.0,1.03863128]
[1755099446871,0.00822468,120710.0,120700.0,0.13028]
[1755099447105,0.01432468,120710.0,120700.0,0.58013461]
[1755099447556,0.09404793,120710.0,120700.0,0.44981461]
[1755099447777,0.09404793,120710.0,120700.0,0.58013461]
[1755099448031,0.09904793,120710.0,120700.0,0.58013461]
[1755099448244,0.09004793,120710.0,120700.0,0.44981461]
[1755099448470,0.09304793,120710.0,120700.0,0.58013461]
[1755099448683,0.09604793,120710.0,120700.0,0.44981461]
[1755099448913,0.09604793,120710.0,120700.0,0.58013461]
[1755099449194,0.09604793,120710.0,120700.0,0.44981461]
[1755099449385,0.09604793,120710.0,120700.0,0.58009461]
[1755099450990,0.09294793,120710.0,120700.0,0.58009461]
[1755099451218,0.09294793,120710.0,120700.0,0.58005461]
[1755099451443,0.01022468,120710.0,120700.0,1.02986922]
[1755099451713,0.01022468,120710.0,120700.0,1.3699893]
[1755099451941,0.01022468,120710.0,120700.0,1.52567036]
[1755099452159,0.01022468,120710.0,120700.0,1.52641675]
[1755099452366,0.01022468,120710.0,120700.0,1.39613675]
[1755099452636,0.00722468,120710.0,120700.0,1.02897667]
[1755099452867,0.00922468,120710.0,120700.0,1.15925667]
[1755099453090,0.00622468,120710.0,120700.0,1.32495675]
[1755099453298,0.00422468,120710.0,120700.0,1.32789675]
[1755099453950,0.00422468,120710.0,120700.0,1.19969675]
[1755099454365,0.00622468,120710.0,120700.0,1.32997675]
[1755099454672,0.00522468,120710.0,120700.0,1.32997675]
[1755099454877,0.00522468,120710.0,120700.0,1.66997675]
[1755099455084,0.00622468,120710.0,120700.0,1.66997675]
[1755099455302,0.00622468,120710.0,120700.0,1.67433778]
[1755099455520,0.00622468,120710.0,120700.0,1.67869881]
[1755099455998,0.00622468,120710.0,120700.0,1.76142206]
[1755099456171,0.00622468,120710.0,120700.0,1.7527]
[1755099456578,0.00622468,120710.0,120700.0,1.62242]
[1755099456782,0.00622468,120710.0,120700.0,1.75262]
[1755099457201,0.00622468,120710.0,120700.0,1.62242]
[1755099457413,0.00622468,120710.0,120700.0,1.53969675]
[1755099457615,0.00622468,120710.0,120700.0,1.66985675]
[1755099457835,0.00822468,120710.0,120700.0,0.91916206]
[1755099458001,0.00622468,120710.0,120700.0,0.91916206]
[1755099458210,0.00622468,120710.0,120700.0,1.04932206]
[1755099458408,0.00622468,120710.0,120700.0,1.53467675]
[1755099458586,0.00622468,120710.0,120700.0,1.66777675]
[1755099458790,0.00622468,120710.0,120700.0,1.54633881]
[1755099458996,0.00622468,120710.0,120700.0,1.6386313]
[1755099459206,0.00622468,120710.0,120700.0,1.66544491]
[1755099459407,0.00622468,120710.0,120700.0,1.53468491]
[1755099459611,0.00622468,120710.0,120700.0,1.66544491]
[1755099459809,0.00622468,120710.0,120700.0,1.68289393]
[1755099459995,0.00522468,120710.0,120700.0,1.55213393]
[1755099460199,0.00522468,120710.0,120700.0,1.67336469]
[1755099460456,0.00522468,120710.0,120700.0,1.66464263]
[1755099460991,0.00422468,120710.0,120700.0,1.66464263]
[1755099461130,0.00422468,120710.0,120700.0,1.81392426]
[1755099461537,0.00422468,120710.0,120700.0,2.21880426]
[1755099462148,0.00422468,120710.0,120700.0,2.11560426]
[1755099462354,0.00422468,120710.0,120700.0,2.11660426]
[1755099462861,0.00422468,120710.0,120700.0,2.01336426]
[1755099463279,0.00422468,120710.0,120700.0,1.81488426]
[1755099463694,0.00422468,120710.0,120700.0,1.68412426]
[1755099463821,0.00422468,120710.0,120700.0,1.81692426]
[1755099466315,0.1,120720.0,120710.0,0.52313537]
[1755099466558,0.1,120720.0,120710.0,1.64546174]
[1755099466825,0.1,120720.0,120710.0,1.64110784]
[1755099467069,0.1,120720.0,120710.0,1.19129323]
[1755099469376,0.1,120720.0,120710.0,1.02560688]
[1755099469518,0.1,120720.0,120710.0,1.19129323]
[1755099469718,0.1,120720.0,120710.0,1.16433669]
[1755099469902,0.1,120720.0,120710.0,1.18915169]
[1755099470103,0.1,120720.0,120710.0,1.31971169]
[1755099470977,0.1,120720.0,120710.0,1.21606823]
[1755099471313,0.1,120720.0,120710.0,1.21706823]
[1755099471679,0.1,120720.0,120710.0,1.51970823]
[1755099471853,0.1,120720.0,120710.0,1.49279169]
[1755099472002,0.1,120720.0,120710.0,1.62331169]
[1755099473233,0.1,120720.0,120710.0,1.52011169]
[1755099473483,0.1,120720.0,120710.0,1.54600834]
[1755099473706,0.1,120720.0,120710.0,1.81441098]
[1755099474127,0.1,120730.0,120720.0,0.53067263]
[1755099474380,0.0032,120740.0,120730.0,0.97292253]
[1755099474610,0.00334733,120740.0,120730.0,1.19983128]
[1755099475438,0.00334733,120740.0,120730.0,1.20079128]
[1755099475867,0.00334733,120740.0,120730.0,1.22579128]
[1755099476072,0.00334733,120740.0,120730.0,1.09535128]
[1755099476489,0.0002,120750.0,120740.0,0.5317797]
[1755099476692,0.0002,120750.0,120740.0,1.57449304]
[1755099476904,0.0002,120750.0,120740.0,1.57771304]
[1755099477540,0.0002,120750.0,120740.0,1.56714892]
[1755099477746,0.0002,120750.0,120740.0,1.64991217]
[1755099478550,0.0022,120750.0,120740.0,1.51046667]
[1755099478759,0.0022,120750.0,120740.0,1.64449467]
[1755099479166,0.0022,120750.0,120740.0,1.62202565]
[1755099479304,0.0022,120750.0,120740.0,1.49130565]
[1755099479525,0.0022,120750.0,120740.0,1.62202565]
[1755099479927,0.0022,120750.0,120740.0,1.04149104]
[1755099480417,0.0032,120750.0,120740.0,1.17221104]
[1755099480619,0.0032,120750.0,120740.0,1.17432104]
[1755099480826,0.0032,120750.0,120740.0,1.62413565]
[1755099481038,0.0012,120750.0,120740.0,1.63596115]
[1755099481654,0.0012,120750.0,120740.0,1.93752115]
[1755099481857,0.0012,120750.0,120740.0,1.92883565]
[1755099482304,0.0022,120750.0,120740.0,1.80680115]
[1755099482520,0.0022,120750.0,120740.0,1.86129663]
[1755099482725,0.003,120760.0,120750.0,1.46592166]
[1755099482934,0.003,120760.0,120750.0,1.67508845]
[1755099483138,0.003,120770.0,120760.0,0.97288138]
[1755099483377,0.003,120770.0,120760.0,1.10885138]
[1755099483583,0.003,120770.0,120760.0,0.98681688]
[1755099483784,0.003,120770.0,120760.0,1.11769688]
[1755099483957,0.003,120770.0,120760.0,1.20042013]
[1755099484193,0.003,120770.0,120760.0,1.06954013]
[1755099484812,0.003,120770.0,120760.0,1.06085463]
[1755099485024,0.003,120770.0,120760.0,1.20034013]
[1755099485425,0.003,120770.0,120760.0,1.19265463]
[1755099486986,0.003,120770.0,120760.0,1.19261463]
[1755099487402,0.003,120770.0,120760.0,1.19257463]
[1755099487833,0.003,120770.0,120760.0,1.06185463]
[1755099488233,0.00496,120770.0,120760.0,1.04126561]
[1755099488399,0.00496,120770.0,120760.0,1.16987561]
[1755099489150,0.00496,120770.0,120760.0,1.17198561]
[1755099489361,0.003,120770.0,120760.0,1.04440561]
[1755099489570,0.003,120770.0,120760.0,1.17512561]
[1755099489793,0.003,120770.0,120760.0,1.17508561]
[1755099490201,0.003,120770.0,120760.0,1.27872907]
[1755099490554,0.003,120770.0,120760.0,1.05055561]
[1755099490763,0.00496,120770.0,120760.0,1.18119561]
[1755099491561,0.00496,120770.0,120760.0,1.34682561]
[1755099491772,0.00791,120770.0,120760.0,1.47738561]
[1755099491975,0.00791,120770.0,120760.0,1.16094236]
[1755099492193,0.00791,120770.0,120760.0,1.09314236]
[1755099492615,0.00496,120770.0,120760.0,1.09314236]
[1755099492830,0.00496,120770.0,120760.0,0.96258236]
[1755099493043,0.00496,120770.0,120760.0,1.19674582]
[1755099493944,0.003,120770.0,120760.0,1.15419907]
[1755099494146,0.003,120770.0,120760.0,1.16288457]
[1755099494596,0.003,120770.0,120760.0,1.28463907]
[1755099495220,0.003,120770.0,120760.0,1.29332457]
[1755099495649,0.003,120770.0,120760.0,1.29328457]
[1755099496269,0.003,120770.0,120760.0,1.15419907]
[1755099496478,0.003,120770.0,120760.0,1.28455907]
[1755099496687,0.003,120770.0,120760.0,1.15419907]
[1755099496893,0.0032,120770.0,120760.0,1.14894907]
[1755099497152,0.0032,120770.0,120760.0,1.27930907]
[1755099497367,0.0032,120770.0,120760.0,1.28455907]
[1755099497368,0.003,120770.0,120760.0,1.28455907]
[1755099497591,0.003,120770.0,120760.0,1.18033359]
[1755099497843,0.003,120770.0,120760.0,1.20713013]
[1755099498905,0.003,120770.0,120760.0,1.20613013]
[1755099499430,0.004,120770.0,120760.0,1.20613013]
[1755099499638,0.003,120770.0,120760.0,1.06700463]
[1755099499866,0.003,120770.0,120760.0,1.19836463]
[1755099500141,0.003,120770.0,120760.0,1.19936463]
[1755099501546,0.003,120770.0,120760.0,1.60396463]
[1755099503939,0.003,120770.0,120760.0,1.39772463]
[1755099504390,0.003,120770.0,120760.0,1.40590146]
[1755099505771,0.003,120770.0,120760.0,1.20754146]
[1755099505995,0.003,120780.0,120770.0,0.52305306]
[1755099506270,0.0031473,120780.0,120770.0,1.75314407]
[1755099506455,0.0031473,120780.0,120770.0,1.75326407]
[1755099506665,0.0031473,120780.0,120770.0,1.30340946]
[1755099507316,0.0031473,120780.0,120770.0,0.71478935]
[1755099507565,0.0031473,120780.0,120770.0,1.29472396]
[1755099507784,0.0031473,120780.0,120770.0,0.84490935]
[1755099508008,0.0031473,120780.0,120770.0,1.29472396]
[1755099508951,0.0051073,120780.0,120770.0,1.16146396]
[1755099509161,0.0051073,120780.0,120770.0,1.14190494]
[1755099509394,0.0051073,120780.0,120770.0,1.27230494]
[1755099509614,0.0061073,120780.0,120770.0,1.27230494]
[1755099510500,0.0061073,120780.0,120770.0,1.2973689]
[1755099511499,0.0061073,120780.0,120770.0,1.7019289]
[1755099511713,0.0061073,120780.0,120770.0,1.4684089]
[1755099511942,0.0061073,120780.0,120770.0,1.3652889]
[1755099512153,0.0061073,120780.0,120770.0,1.4957289]
[1755099512362,0.0041473,120780.0,120770.0,1.3070665]
[1755099512596,0.0041473,120780.0,120770.0,1.20764106]
[1755099512801,0.0041473,120780.0,120770.0,1.22509008]
[1755099513029,0.0041473,120780.0,120770.0,1.67490469]
[1755099514111,0.0031473,120780.0,120770.0,1.22609008]
[1755099514331,0.0031473,120780.0,120770.0,1.22709008]
[1755099514539,0.0031473,120780.0,120770.0,1.21841488]
[1755099515401,7e-05,120800.0,120790.0,0.53057662]
[1755099515605,7e-05,120800.0,120790.0,1.64546909]
[1755099515807,0.003,120820.0,120810.0,0.5055492]
[1755099516118,0.00314728,120820.0,120810.0,0.95746381]
[1755099516326,0.00314728,120820.0,120810.0,0.96931901]
[1755099516528,0.00314728,120820.0,120810.0,1.09112381]
[1755099516529,0.00522728,120820.0,120810.0,1.09112381]
[1755099517359,0.00622728,120820.0,120810.0,1.08584381]
[1755099517685,0.00622728,120820.0,120810.0,1.08576381]
[1755099517905,0.00622728,120820.0,120810.0,1.16848706]
[1755099518330,0.00722728,120820.0,120810.0,1.03808706]
[1755099518967,0.00722728,120820.0,120810.0,1.16852706]
[1755099519393,0.00722728,120820.0,120810.0,1.19284306]
[1755099519596,0.00514728,120820.0,120810.0,1.06450306]
[1755099519801,0.00514728,120820.0,120810.0,1.20250066]
[1755099520005,0.00514728,120820.0,120810.0,1.0854895]
[1755099520184,0.00514728,120820.0,120810.0,1.10293852]
[1755099520418,0.0213258,120830.0,120820.0,0.97315655]
[1755099520655,0.0213258,120830.0,120820.0,1.1883798]
[1755099520860,0.01306156,120830.0,120820.0,1.55132343]
[1755099521269,0.00479732,120830.0,120820.0,1.78563223]
[1755099521491,0.00479732,120830.0,120820.0,1.88875223]
[1755099521670,0.00299,120880.0,120870.0,0.34]
[1755099521910,0.00299,120880.0,120870.0,1.28396164]
[1755099522092,0.00299,120880.0,120870.0,1.09431684]
[1755099522297,0.00299,120880.0,120870.0,0.79848981]
[1755099522501,0.00299,120880.0,120870.0,0.92880981]
[1755099522738,0.00299,120880.0,120870.0,1.09427684]
[1755099522938,0.00299,120880.0,120870.0,0.98901493]
[1755099523148,0.00299,120880.0,120870.0,0.8235479]
[1755099523338,0.00299,120880.0,120870.0,0.98901493]
[1755099523545,0.004,120880.0,120870.0,1.11933493]
[1755099524164,0.007,120880.0,120870.0,1.11933493]
[1755099524599,0.007,120880.0,120870.0,0.98901493]
[1755099524809,0.007,120880.0,120870.0,0.8235479]
[1755099525010,0.007,120880.0,120870.0,0.9538279]
[1755099525222,0.00999,120880.0,120870.0,0.9538279]
[1755099525433,0.00999,120880.0,120870.0,0.8148727]
[1755099526065,0.00999,120880.0,120870.0,0.9450727]
[1755099526504,0.01003,120880.0,120870.0,0.9450727]
[1755099526693,0.05151112,120920.0,120880.0,0.003]
[1755099526891,0.34902325,120910.0,120890.0,0.1332]
[1755099527122,0.34902325,120910.0,120900.0,0.1302]
[1755099527123,0.36444863,120910.0,120900.0,0.1302]
[1755099527326,0.09814863,120910.0,120900.0,0.1302]
[1755099527747,0.09814667,120910.0,120900.0,0.13016]
[1755099528398,0.10414667,120910.0,120900.0,0.13016]
[1755099528605,0.52013667,120910.0,120870.0,0.4778727]
[1755099528812,0.52313667,120910.0,120870.0,0.02805809]
[1755099529029,0.52313667,120910.0,120870.0,0.4778727]
[1755099529703,0.52313224,120910.0,120870.0,0.47777189]
[1755099529912,0.52313224,120910.0,120880.0,0.13008]
[1755099530125,0.53113224,120910.0,120880.0,0.13008]
[1755099530342,0.52713224,120910.0,120880.0,0.44981461]
[1755099530558,0.52313224,120910.0,120890.0,0.13008]
[1755099530995,0.52413224,120910.0,120880.0,0.45188277]
[1755099531212,0.52413224,120910.0,120890.0,0.44981461]
[1755099531428,0.10314224,120910.0,120900.0,0.44981461]
[1755099531644,0.10314224,120910.0,120900.0,0.3056576]
[1755099531887,0.08672325,120910.0,120900.0,0.75113461]
[1755099532146,0.08672325,120910.0,120900.0,0.88137461]
[1755099532363,0.08572325,120910.0,120900.0,0.78696981]
[1755099532577,0.08572325,120910.0,120900.0,0.3371552]
[1755099532798,0.08972325,120910.0,120900.0,0.78692981]
[1755099533275,0.09072325,120910.0,120900.0,0.79528207]
[1755099533488,0.09372325,120910.0,120900.0,0.80424767]
[1755099533690,0.08972325,120910.0,120900.0,0.78660687]
[1755099533898,0.08972325,120910.0,120900.0,0.45816687]
[1755099534110,0.09272325,120910.0,120900.0,0.58836687]
[1755099534322,0.09272325,120910.0,120900.0,0.58828687]
[1755099534528,0.01,120910.0,120900.0,0.45509461]
[1755099534837,0.01,120910.0,120900.0,0.58517461]
[1755099535514,0.007,120910.0,120900.0,0.59351585]
[1755099535928,0.009,120910.0,120900.0,0.59351585]
[1755099536272,0.006,120910.0,120900.0,0.59351585]
[1755099536480,0.006,120910.0,120900.0,0.62886182]
[1755099536683,0.008,120910.0,120900.0,0.76753702]
[1755099536913,0.008,120910.0,120900.0,0.60211105]
[1755099537426,0.008,120910.0,120900.0,0.59343585]
[1755099537623,0.008,120910.0,120900.0,0.46343585]
[1755099537832,0.008,120910.0,120900.0,0.75044058]
[1755099538028,0.006,120910.0,120900.0,0.45509461]
[1755099538234,0.007,120910.0,120900.0,0.45509461]
[1755099538452,0.005,120910.0,120900.0,0.58501461]
[1755099538601,0.006,120910.0,120900.0,0.6091747]
[1755099539006,0.006,120910.0,120900.0,0.6091347]
[1755099539838,0.006,120910.0,120900.0,0.61751503]
[1755099540312,0.006,120910.0,120900.0,0.48763503]
[1755099540443,0.006,120910.0,120900.0,0.61751503]
[1755099540873,0.006,120910.0,120900.0,0.37254042]
[1755099541084,0.08872325,120910.0,120900.0,0.37254042]
[1755099541289,0.08872325,120910.0,120900.0,0.50238042]
[1755099541456,0.08872325,120910.0,120900.0,1.12359503]
[1755099541875,0.08872325,120910.0,120900.0,1.25851503]
[1755099542076,0.08885325,120910.0,120900.0,1.25343503]
[1755099542274,0.006,120910.0,120900.0,1.02351503]
[1755099542533,0.006,120910.0,120900.0,0.84649479]
[1755099542857,0.006,120910.0,120900.0,0.96575023]
[1755099543031,0.006,120910.0,120900.0,0.50726042]
[1755099543291,0.006,120910.0,120900.0,0.37254042]
[1755099543531,0.006,120910.0,120900.0,0.50430042]
[1755099544515,0.08872325,120910.0,120900.0,0.37254042]
[1755099544730,0.08872325,120910.0,120900.0,0.50430042]
[1755099545336,0.08872325,120910.0,120900.0,0.37254042]
[1755099545556,0.08872325,120910.0,120900.0,0.50430042]
[1755099545973,0.08872325,120910.0,120900.0,0.50434042]
[1755099546601,0.08885325,120910.0,120900.0,0.03254042]
[1755099546805,0.0981533,120910.0,120900.0,0.03254042]
[1755099547015,0.0981533,120910.0,120900.0,0.13172]
[1755099547481,0.1042974,120910.0,120900.0,0.13172]
[1755099547899,0.1042974,120910.0,120880.0,0.00296]
[1755099548020,0.08272325,120900.0,120890.0,0.13991224]
[1755099548228,0.08285325,120900.0,120890.0,0.13164]
[1755099548665,0.08285325,120900.0,120880.0,0.00296]
[1755099548872,0.08285325,120900.0,120890.0,0.13164]
[1755099549650,0.08285325,120900.0,120890.0,0.02455351]
[1755099549898,0.08285325,120900.0,120880.0,0.1039088]
[1755099550054,0.08285325,120900.0,120890.0,0.13156]
[1755099550253,0.08385325,120900.0,120890.0,0.13156]
[1755099550535,0.08585325,120900.0,120890.0,0.13156]
[1755099550762,0.08385325,120900.0,120890.0,0.13148]
[1755099551181,0.08685325,120900.0,120890.0,0.13965494]
[1755099551328,0.08485325,120900.0,120880.0,0.1039088]
[1755099551534,0.08485325,120900.0,120890.0,0.43272]
[1755099551737,0.08585325,120900.0,120890.0,0.43272]
[1755099551991,0.08585325,120900.0,120890.0,0.44092987]
[1755099552177,0.08785325,120900.0,120890.0,0.11124987]
[1755099552398,0.08785325,120900.0,120890.0,0.20640987]
[1755099552546,0.53774786,120900.0,120890.0,0.1982]
[1755099552751,0.59192265,120900.0,120890.0,0.32964]
[1755099553189,0.14210804,120900.0,120890.0,0.32964]
[1755099553393,0.14210804,120900.0,120880.0,0.00849927]
[1755099553592,0.14210804,120900.0,120890.0,0.1314]
[1755099554548,0.14210804,120900.0,120890.0,0.13136]
[1755099554782,0.14210804,120900.0,120890.0,0.13132]
[1755099555504,0.14010804,120900.0,120890.0,0.13132]
[1755099555717,0.08793325,120900.0,120890.0,0.13132]
[1755099556150,0.08793325,120900.0,120870.0,0.13130036]
[1755099556361,0.08793325,120900.0,120870.0,0.13941251]
[1755099556362,0.08593325,120900.0,120870.0,0.13941251]
[1755099556561,0.08593325,120900.0,120880.0,0.13128]
[1755099556767,0.53253786,120890.0,120870.0,0.11502095]
[1755099556978,0.00013,120880.0,120870.0,0.01111215]
[1755099557196,0.08285325,120880.0,120870.0,0.14239215]
[1755099557407,0.08285325,120880.0,120870.0,0.01111215]
[1755099557625,0.08285325,120880.0,120870.0,0.003]
[1755099558080,0.08285325,120880.0,120870.0,0.13428]
[1755099558250,0.13657523,120880.0,120870.0,0.13428]
[1755099558483,0.13657523,120880.0,120870.0,0.003]
[1755099558706,0.13757523,120880.0,120870.0,0.13424]
[1755099558898,0.14157523,120880.0,120870.0,0.13424]
[1755099559666,0.08800044,120880.0,120870.0,0.13424]
[1755099559878,0.09100044,120880.0,120870.0,0.13424]
[1755099560285,0.09100044,120880.0,120870.0,0.003]
[1755099560716,0.09100044,120880.0,120870.0,0.13416]
[1755099561132,0.09100044,120880.0,120870.0,0.003]
[1755099561568,0.09100044,120880.0,120870.0,0.43544]
[1755099561796,0.14508994,120880.0,120870.0,0.43544]
[1755099562518,0.14508994,120880.0,120870.0,0.33236]
[1755099562916,0.09100044,120880.0,120870.0,0.33236]
[1755099563832,0.09100044,120880.0,120870.0,0.20124]
[1755099564052,0.09100044,120880.0,120870.0,0.33224]
[1755099565160,0.09100044,120880.0,120870.0,0.003]
[1755099565317,0.09100044,120880.0,120870.0,0.134]
[1755099565485,0.10010048,120880.0,120870.0,0.003]
[1755099565691,0.10010048,120880.0,120870.0,0.13392]
[1755099565929,0.09997048,120880.0,120870.0,0.13604]
[1755099566148,0.09997048,120880.0,120870.0,0.13896]
[1755099566293,0.09087044,120880.0,120870.0,0.13896]
[1755099566954,0.09087044,120880.0,120870.0,0.00808]
[1755099567199,0.09087044,120880.0,120870.0,0.69268341]
[1755099567422,0.09087044,120880.0,120870.0,0.56180341]
[1755099567671,0.00814719,120880.0,120870.0,0.96336164]
[1755099567884,0.00489719,120880.0,120870.0,0.96336164]
[1755099568072,0.00189719,120880.0,120870.0,0.79789461]
[1755099568285,0.001,120900.0,120870.0,1.09416069]
[1755099568491,0.004,120880.0,120870.0,0.92622573]
[1755099568911,0.08272325,120890.0,120870.0,0.92622573]
[1755099569130,0.08272325,120890.0,120880.0,0.55343789]
[1755099569348,0.08272325,120890.0,120880.0,0.68927789]
[1755099569766,0.08272325,120890.0,120880.0,0.55851789]
[1755099570018,0.001,120900.0,120890.0,0.34]
[1755099570229,0.08372325,120900.0,120890.0,0.79487461]
[1755099570389,0.08372325,120900.0,120890.0,0.92563461]
[1755099570799,0.001,120900.0,120890.0,0.92563461]
[1755099571217,0.001,120900.0,120890.0,1.06393754]
[1755099571422,0.001,120900.0,120890.0,1.33089789]
[1755099572109,0.003,120900.0,120890.0,0.88104328]
[1755099572536,0.001,120900.0,120890.0,1.33185789]
[1755099572945,0.002,120900.0,120890.0,1.33185789]
[1755099573359,0.002,120900.0,120890.0,1.33585789]
[1755099573618,0.002,120900.0,120890.0,1.37025754]
[1755099573848,0.002,120900.0,120890.0,1.50129754]
[1755099574068,0.03711771,120940.0,120890.0,1.50129754]
[1755099574276,0.08272325,120930.0,120900.0,0.45188243]
[1755099574481,0.08272325,120930.0,120920.0,0.00203]
[1755099574704,0.08272325,120930.0,120920.0,0.00506]
[1755099574926,0.08272325,120930.0,120910.0,0.13408]
[1755099574927,0.08474325,120930.0,120910.0,0.13408]
[1755099575145,0.08474325,120930.0,120910.0,0.00598573]
[1755099575765,0.08789041,120930.0,120910.0,0.00598573]
[1755099575932,0.08796041,120930.0,120910.0,0.00295573]
[1755099576132,0.09096041,120930.0,120910.0,0.00295573]
[1755099576292,0.09096041,120930.0,120920.0,0.13108]
[1755099576702,0.09096041,120930.0,120920.0,0.13104]
[1755099577334,0.09296041,120930.0,120910.0,0.00295573]
[1755099577551,0.08796041,120930.0,120920.0,0.131]
[1755099577775,0.09096041,120930.0,120910.0,0.00295573]
[1755099577994,0.09296041,120930.0,120920.0,0.13096]
[1755099578208,0.09296041,120930.0,120920.0,0.00848769]
[1755099578475,0.08789041,120930.0,120920.0,0.13096]
[1755099578658,0.08489041,120930.0,120920.0,0.13096]
[1755099578885,0.08989041,120930.0,120920.0,0.13096]
[1755099579085,0.08789041,120930.0,120920.0,0.13096]
[1755099579297,0.08789041,120930.0,120920.0,0.13936979]
[1755099580430,0.09089041,120930.0,120920.0,0.13932979]
[1755099581474,0.09089041,120930.0,120920.0,0.30964979]
[1755099581877,0.09089041,120930.0,120920.0,0.44048979]
[1755099582100,0.09189041,120930.0,120920.0,0.44048979]
[1755099582554,0.09189041,120930.0,120920.0,0.30964979]
[1755099582767,0.08987041,120930.0,120920.0,0.44247979]
[1755099582995,0.08987041,120930.0,120920.0,0.21166979]
[1755099583206,0.08987041,120930.0,120920.0,0.34246979]
[1755099583410,0.08987041,120930.0,120920.0,0.01346979]
[1755099583833,0.08987041,120930.0,120920.0,0.14422979]
[1755099584468,0.08387041,120930.0,120920.0,0.14422979]
[1755099584684,0.08787041,120930.0,120920.0,0.14422979]
[1755099585111,5.08787041,120930.0,120920.0,0.14422979]
[1755099585318,5.08587041,120930.0,120920.0,0.14422979]
[1755099585509,5.08787041,120930.0,120920.0,0.14422979]
[1755099588857,5.08811041,120930.0,120920.0,0.14422979]
[1755099589082,5.08811041,120930.0,120920.0,0.00840979]
[1755099589299,5.08811041,120930.0,120920.0,0.13892979]
[1755099589517,5.08811041,120930.0,120910.0,0.00598573]
[1755099589731,5.08811041,120930.0,120920.0,0.13247]
[1755099589978,5.08811041,120930.0,120920.0,0.14057552]
[1755099590223,5.08811041,120930.0,120920.0,0.13854552]
[1755099590429,5.08915041,120930.0,120920.0,0.13854552]
[1755099590646,5.09015041,120930.0,120920.0,0.13854552]
[1755099591077,5.08915041,120930.0,120920.0,0.00810552]
[1755099591317,5.09115041,120930.0,120920.0,0.13850552]
[1755099591542,5.10090069,120930.0,120920.0,0.43164]
[1755099591761,5.08611041,120930.0,120920.0,0.43164]
[1755099592178,5.08711041,120930.0,120920.0,0.43164]
[1755099592590,5.08611041,120930.0,120920.0,0.43164]
[1755099592850,5.08811041,120930.0,120920.0,0.43164]
[1755099593485,5.08811041,120930.0,120920.0,0.43152]
[1755099593752,5.08811041,120930.0,120920.0,0.43977888]
[1755099593964,5.08811041,120930.0,120920.0,0.20645888]
[1755099594191,5.08811041,120930.0,120920.0,0.34175888]
[1755099594635,5.08787041,120930.0,120920.0,0.34175888]
[1755099595910,5.08989041,120930.0,120920.0,0.33872888]
[1755099596365,5.08787041,120930.0,120920.0,0.34167888]
[1755099596784,5.08989041,120930.0,120920.0,0.33661888]
[1755099598230,5.08989041,120930.0,120920.0,0.13841888]
[1755099598451,5.08989041,120930.0,120920.0,0.14044888]
[1755099599175,5.08989041,120930.0,120920.0,0.14036888]
[1755099599389,5.08989041,120930.0,120920.0,0.13833888]
[1755099599563,5.08989041,120930.0,120920.0,0.13829888]
[1755099599981,5.63456359,120930.0,120920.0,0.00825888]
[1755099600197,5.17560484,120930.0,120920.0,0.13]
[1755099600449,5.63456359,120930.0,120910.0,0.11504976]
[1755099600658,0.544912,120920.0,120910.0,0.10657901]
[1755099600888,0.56431102,120920.0,120910.0,0.10657901]
[1755099601103,0.56431102,120920.0,120910.0,0.00295573]
[1755099601104,0.64679545,120920.0,120910.0,0.00295573]
[1755099601351,0.2663,120920.0,120910.0,0.80721448]
[1755099601567,0.2663,120920.0,120910.0,1.23841448]
[1755099601803,0.2663,120920.0,120910.0,1.26319648]
[1755099602012,0.2683,120920.0,120910.0,1.26319648]
[1755099602265,0.2683,120920.0,120910.0,0.80423773]
[1755099602460,0.2673,120920.0,120910.0,1.26319648]
[1755099602830,0.2663,120920.0,120910.0,1.26319648]
[1755099603435,0.2663,120920.0,120910.0,1.26323648]
[1755099604164,0.2663,120920.0,120910.0,1.16019648]
[1755099604368,0.34902325,120920.0,120910.0,0.50307773]
[1755099604522,0.34902325,120920.0,120910.0,0.96199648]
[1755099606054,0.34926325,120920.0,120910.0,0.37303773]
[1755099606267,0.34926325,120920.0,120910.0,0.36988773]
[1755099606468,0.34926325,120920.0,120910.0,0.49988773]
[1755099606665,0.34926325,120920.0,120910.0,0.93406448]
[1755099607223,0.34926325,120920.0,120910.0,0.4466294]
[1755099607426,0.34926325,120920.0,120910.0,0.5766294]
[1755099607841,0.34926325,120920.0,120910.0,0.1066294]
[1755099608071,0.08619325,120920.0,120910.0,0.1066294]
[1755099608285,0.08619325,120920.0,120910.0,0.2366294]
[1755099608707,0.16867768,120920.0,120910.0,0.2366294]
[1755099608924,0.10364227,120920.0,120910.0,0.2366294]
[1755099609191,0.10764227,120920.0,120910.0,0.2366294]
[1755099609402,0.56660102,120920.0,120910.0,0.1066294]
[1755099609623,0.56660102,120920.0,120910.0,0.13295573]
[1755099609831,0.64908545,120920.0,120910.0,0.13295573]